fUSD/lending_fUSD_20240224
["ID","MTS","AMOUNT","RATE_DAILY","PERIOD"]
[315020127,1708732800313,250.0,0.00022,2]
[315020128,1708732802195,250.0,0.00022274,2]
[315020129,1708732811519,87872.13,0.0002172,2]
[315020130,1708732818725,500.0,0.00021597,2]
[315020131,1708732840125,500.0,0.0002159,2]
[315020132,1708732880494,179.77,0.00021583,2]
[315020133,1708732897838,388319.0,0.00021026,2]
[315020134,1708732919609,2896.05,0.00021571,2]
[315020135,1708732922772,3622.94677849,0.0002236,2]
[315020136,1708732930922,204.46914749,0.0002236,2]
[315020137,1708732932692,159.52,0.00022189,2]
[315020138,1708732940790,2394.4,0.00021527,2]
[315020139,1708732965031,692.59,0.00021518,2]
[315020140,1708732969746,200.0,0.00021518,2]
[315020141,1708732972938,155.0,0.000224,2]
[315020142,1708732979445,615.56277098,0.000224,2]
[315020143,1708732988768,1049.28241581,0.000224,2]
[315020144,1708733003731,1000.0,0.00021518,2]
[315020145,1708733011089,198.2930226,0.000224,2]
[315020146,1708733020317,1171.74137484,0.00022395,2]
[315020147,1708733026426,170.39792644,0.00022359,2]
[315020148,1708733048139,1764.63856229,0.00022359,2]
[315020149,1708733057339,370.74488974,0.00022375,2]
[315020150,1708733059493,954.06,0.00021693,2]
[315020151,1708733059707,954.06,0.00021753,2]
[315020152,1708733059925,954.06,0.00021812,2]
[315020153,1708733060137,954.06,0.00021872,2]
[315020154,1708733060392,954.06,0.00021931,2]
[315020155,1708733060577,954.06,0.00021991,2]
[315020156,1708733060813,954.06,0.0002205,2]
[315020157,1708733061026,954.06,0.0002211,2]
[315020158,1708733061469,954.06,0.00022169,2]
[315020159,1708733061880,954.06,0.00022229,2]
[315020160,1708733062093,954.06,0.00022288,2]
[315020161,1708733062307,954.06,0.00022348,2]
[315020162,1708733063572,615.56277098,0.000224,2]
[315020163,1708733065277,1049.28241581,0.000224,2]
[315020164,1708733066276,204.46914749,0.00022359,2]
[315020165,1708733085540,250.0,0.00021515,2]
[315020166,1708733093222,200.0,0.00021515,2]
[315020167,1708733106015,953.8292,0.00022358,2]
[315020168,1708733113116,3170.07843124,0.00022359,2]
[315020169,1708733127875,9500.98,0.00021509,2]
[315020170,1708733135231,3237.71415231,0.000224,2]
[315020171,1708733141793,1049.28241581,0.000224,2]
[315020172,1708733146229,1037.35867401,0.00022375,2]
[315020173,1708733154119,615.56277098,0.000224,2]
[315020174,1708733162138,150.0,0.000224,2]
[315020175,1708733162460,300.0,0.000224,2]
[315020176,1708733200513,781.16091656,0.00022395,2]
[315020177,1708733205180,5576.62,0.00021506,2]
[315020178,1708733212553,247.16325984,0.00022362,2]
[315020179,1708733216429,1049.28241581,0.000224,2]
[315020180,1708733225156,7894.97625054,0.00022367,2]
[315020181,1708733225969,2000.0,0.00021506,2]
[315020182,1708733232206,878.89,0.00021506,2]
[315020183,1708733239583,176.55,0.00022054,2]
[315020184,1708733245700,615.56277098,0.000224,2]
[315020185,1708733247734,2500.0,0.00022358,2]
[315020186,1708733255130,161.81,0.00021515,2]
[315020187,1708733255338,161.81,0.00022232,2]
[315020188,1708733276548,691.57244934,0.00022367,2]
[315020189,1708733279149,1323.17,0.00019597,2]
[315020190,1708733279369,1323.17,0.00021861,2]
[315020191,1708733285320,38269.0959,0.00022358,2]
[315020192,1708733287357,15488.80812543,0.000224,2]
[315020193,1708733303120,1049.28241581,0.000224,2]
[315020194,1708733303522,2773.8186273,0.00022359,2]
[315020195,1708733303690,23900.0,0.00021509,2]
[315020196,1708733305220,150.0,0.0002156,2]
[315020197,1708733306731,150.0,0.00022108,2]
[315020203,1708733309950,200.0,0.00021515,2]
[315020204,1708733321830,615.56277098,0.000224,2]
[315020205,1708733329195,500.0,0.00021506,2]
[315020206,1708733331332,500.0,0.00021506,2]
[315020210,1708733335919,1628.13431944,0.00022367,2]
[315020214,1708733360632,5263.31750036,0.00022367,2]
[315020215,1708733363839,177.74,0.00021458,2]
[315020216,1708733364895,173.1772457,0.00022367,2]
[315020217,1708733365668,177.74,0.00022006,2]
[315020218,1708733367863,164.77550656,0.0002236,2]
[315020219,1708733380791,520.77394438,0.00022367,2]
[315020223,1708733388642,1000.0,0.00022358,2]
[315020224,1708733397150,550.82408143,0.00022367,2]
[315020225,1708733406972,461.04829956,0.00022367,2]
[315020229,1708733412478,150.0,0.00022,2]
[315020230,1708733420584,259.36,0.0002156,2]
[315020231,1708733421904,259.36,0.00021697,2]
[315020232,1708733423181,259.36,0.00021834,2]
[315020233,1708733424497,259.36,0.00021971,2]
[315020234,1708733425786,259.36,0.00022108,2]
[315020235,1708733427067,259.36,0.00022245,2]
[315020236,1708733428366,259.36,0.00022382,2]
[315020240,1708733432132,-615.56277098,0.00022406,2]
[315020241,1708733432141,-954.06,0.00022407,2]
[315020242,1708733432151,-13954.0665886,0.00022435,2]
[315020243,1708733432189,-1017.36783253,0.00022435,2]
[315020244,1708733432214,-498.59385262,0.00022435,2]
[315020245,1708733432227,-18.77985168,0.00022435,2]
[315020247,1708733432237,-2773.81862727,0.00022436,2]
[315020248,1708733432247,-150.0,0.00022447,2]
[315020249,1708733432256,-9558.27127712,0.00022448,2]
[315020250,1708733432268,-255.80103577,0.00022448,2]
[315020251,1708733432284,-371.57357286,0.00022448,2]
[315020252,1708733432298,-746.41878368,0.00022448,2]
[315020253,1708733432310,-512.82962346,0.00022448,2]
[315020254,1708733432319,-221.99073487,0.00022448,2]
[315020255,1708733432328,-645.61991161,0.00022456,2]
[315020256,1708733432339,-354.38008839,0.00022456,2]
[315020257,1708733432349,-193.02738789,0.00022456,2]
[315020258,1708733434831,500.0,0.0002156,2]
[315020259,1708733436122,500.0,0.00022108,2]
[315020260,1708733437859,-806.97261211,0.00022456,2]
[315020261,1708733437868,-204.38214246,0.00022456,2]
[315020262,1708733437878,-611.40634156,0.00022456,2]
[315020263,1708733437889,-155.0,0.00022457,2]
[315020264,1708733437898,-518.95,0.00022457,2]
[315020265,1708733437908,-1666.16,0.00022457,2]
[315020266,1708733437918,-5425.17,0.00022457,2]
[315020267,1708733437928,-26079.09776009,0.00022457,2]
[315020268,1708733437937,-1361.53,0.00022458,2]
[315020269,1708733437946,-499.99,0.00022458,2]
[315020270,1708733437956,-1009.64,0.00022458,2]
[315020271,1708733437966,-114402.7960206,0.00022458,2]
[315020272,1708733437978,-949130.81605456,0.00022458,2]
[315020273,1708733437988,-2339.4598,0.00022459,2]
[315020274,1708733437997,-155242.3396,0.00022459,2]
[315020275,1708733438007,-224.99,0.0002246,3]
[315020276,1708733438015,-3000.0,0.00022462,2]
[315020277,1708733438025,-33150.6558,0.00022462,2]
[315020278,1708733438034,-954.06,0.00022467,2]
[315020279,1708733438043,-680.76,0.00022467,2]
[315020280,1708733438052,-8985.46,0.00022475,2]
[315020281,1708733438062,-5280.19,0.00022495,2]
[315020282,1708733438071,-150.08,0.00022495,2]
[315020283,1708733438080,-17330.17177998,0.000225,2]
[315020284,1708733438090,-179.21,0.00022501,2]
[315020285,1708733438099,-553.63,0.00022501,2]
[315020286,1708733438108,-2773.81862727,0.00022514,2]
[315020288,1708733438118,-279.28652875,0.00022519,2]
[315020290,1708733438127,-954.06,0.00022526,2]
[315020292,1708733438136,-250.0,0.00022548,2]
[315020293,1708733438146,-150.0,0.00022548,2]
[315020295,1708733438155,-177.74,0.00022554,2]
[315020297,1708733438166,-299.301198,0.00022557,2]
[315020299,1708733438176,-278.52436398,0.00022558,2]
[315020301,1708733438185,-13415.571,0.00022559,2]
[315020303,1708733438194,-29838.4336,0.0002256,2]
[315020305,1708733438204,-333.9004,0.0002256,2]
[315020306,1708733438217,-576787.4016,0.0002256,2]
[315020307,1708733438226,-954.9105,0.0002256,2]
[315020308,1708733438236,-739.0699,0.0002256,2]
[315020309,1708733438245,-60950.0446,0.0002256,2]
[315020310,1708733438254,-1361.53,0.00022572,2]
[315020311,1708733438263,-954.06,0.00022586,2]
[315020312,1708733438272,-2773.81862727,0.00022591,2]
[315020313,1708733438281,-164.77550654,0.0002263,2]
[315020314,1708733438293,-5263.31750036,0.00022634,2]
[315020315,1708733438302,-173.17724569,0.00022634,2]
[315020316,1708733438311,-520.77394436,0.00022634,2]
[315020317,1708733438320,-550.82408141,0.00022634,2]
[315020318,1708733438330,-461.04829954,0.00022634,2]
[315020319,1708733438339,-954.06,0.00022645,2]
[315020320,1708733438349,-150.0,0.00022656,2]
[315020321,1708733438358,-100000.0,0.0002266,2]
[315020322,1708733438367,-12654.6111,0.0002266,2]
[315020323,1708733438377,-2529.717,0.0002266,2]
[315020324,1708733438386,-244.24766075,0.0002266,2]
[315020325,1708733438396,-16950.9783,0.0002266,2]
[315020326,1708733438406,-2773.81862727,0.00022668,2]
[315020327,1708733438416,-1361.53,0.00022686,2]
[315020328,1708733438425,-954.06,0.00022705,2]
[315020329,1708733438434,-171.87034206,0.00022714,2]
[315020330,1708733438443,-500.0,0.00022718,2]
[315020331,1708733438453,-500.0,0.00022718,2]
[315020332,1708733438463,-500.0,0.00022718,2]
[315020333,1708733438472,-500.0,0.00022718,2]
[315020334,1708733438482,-500.0,0.00022718,2]
[315020335,1708733438492,-500.0,0.00022718,2]
[315020336,1708733438501,-500.0,0.00022718,2]
[315020337,1708733438511,-500.0,0.00022718,2]
[315020338,1708733438520,-570.28737063,0.00022718,2]
[315020339,1708733438530,-500.0,0.00022718,2]
[315020340,1708733438539,-228.25433814,0.00022718,2]
[315020341,1708733438548,-500.0,0.00022718,2]
[315020342,1708733438558,-500.0,0.00022718,2]
[315020343,1708733438567,-500.0,0.00022718,2]
[315020344,1708733438576,-500.0,0.00022718,2]
[315020345,1708733438586,-526.73453276,0.00022718,2]
[315020346,1708733438596,-171.87034206,0.00022741,2]
[315020347,1708733438606,-2773.81862727,0.00022745,2]
[315020348,1708733438615,-221.99073487,0.0002275,2]
[315020349,1708733438625,-414.77976445,0.00022758,2]
[315020350,1708733438634,-3049.36185881,0.00022758,2]
[315020351,1708733438644,-155.0,0.00022758,2]
[315020352,1708733438654,-157.24730753,0.00022758,2]
[315020353,1708733438665,-566.86135489,0.00022759,2]
[315020354,1708733438675,-33237.02634434,0.00022759,2]
[315020355,1708733438685,-192803.43947484,0.0002276,2]
[315020356,1708733438695,-954.06,0.00022764,2]
[315020357,1708733438705,-171.87034206,0.00022767,2]
[315020358,1708733438714,-244.24766075,0.0002278,2]
[315020359,1708733438724,-171.87034206,0.00022794,2]
[315020360,1708733438734,-1361.53,0.000228,2]
[315020361,1708733438744,-171.87034206,0.0002282,2]
[315020362,1708733438754,-250.0,0.00022822,2]
[315020363,1708733438764,-2773.81862727,0.00022823,2]
[315020364,1708733438774,-954.06,0.00022824,2]
[315020365,1708733438784,-171.87034206,0.00022847,2]
[315020366,1708733438793,-171.87034206,0.00022873,2]
[315020367,1708733438803,-300.0,0.00022882,2]
[315020368,1708733438812,-245000.0,0.000229,2]
[315020369,1708733438822,-1000.0,0.000229,2]
[315020370,1708733438831,-171.87034206,0.000229,2]
[315020371,1708733438841,-244.24766075,0.000229,2]
[315020372,1708733438850,-2773.81862727,0.000229,2]
[315020373,1708733438860,-1628.13431942,0.000229,2]
[315020374,1708733438870,-5263.31750036,0.000229,2]
[315020375,1708733438880,-173.17724569,0.000229,2]
[315020376,1708733438890,-164.77550654,0.000229,2]
[315020377,1708733438900,-520.77394436,0.000229,2]
[315020378,1708733438909,-550.82408141,0.000229,2]
[315020379,1708733438919,-461.04829954,0.000229,2]
[315020380,1708733438927,-170.39792644,0.00022908,2]
[315020381,1708733438937,-1361.53,0.00022914,2]
[315020382,1708733438946,-161.81,0.00022949,2]
[315020383,1708733438955,-800.0,0.00022959,2]
[315020384,1708733438964,-268.83123177,0.00022999,2]
[315020385,1708733438973,-159.1769536,0.00022999,2]
[315020386,1708733438982,-433.75275,0.00022999,2]
[315020387,1708733438992,-224.2610868,0.00022999,2]
[315020388,1708733439001,-430.42854931,0.00022999,2]
[315020389,1708733439013,-290.68324151,0.00022999,2]
[315020390,1708733439022,-399.97673229,0.00022999,2]
[315020391,1708733439031,-191.76795124,0.00022999,2]
[315020392,1708733439040,-327.55007547,0.00022999,2]
[315020393,1708733439049,-188.18186224,0.00022999,2]
[315020394,1708733439058,-246.61639901,0.00022999,2]
[315020395,1708733439068,-8694435.30632045,0.00023,2]
[315020396,1708733439077,-10949356.34971171,0.00023,2]
[315020397,1708733439086,-39546.6893,0.00023008,2]
[315020398,1708733439095,-1361.53,0.00023028,2]
[315020399,1708733439105,-1239.36942641,0.00023036,2]
[315020400,1708733439114,-500.0,0.00023096,2]
[315020401,1708733439122,-150.0,0.00023096,2]
[315020402,1708733439131,-177.74,0.00023102,2]
[315020403,1708733439140,-4665.69764438,0.0002313,2]
[315020404,1708733439151,-1361.53,0.00023142,2]
[315020405,1708733439161,-5576.62,0.0002315,2]
[315020406,1708733439171,-34400.5807614,0.000232,2]
[315020407,1708733439181,-150.0,0.00023204,2]
[315020408,1708733439191,-1361.53,0.00023256,2]
[315020409,1708733439200,-1361.53,0.0002337,2]
[315020410,1708733439212,-159.52,0.0002341,2]
[315020411,1708733439222,-1361.53,0.00023484,2]
[315020412,1708733439231,-1361.53,0.00023598,2]
[315020413,1708733439240,-317.94,0.00023614,2]
[315020414,1708733439250,-150.0,0.00023644,2]
[315020415,1708733439435,-177.74,0.0002365,2]
[315020416,1708733439445,-161.81,0.00023666,2]
[315020417,1708733439454,-1361.53,0.00023712,2]
[315020418,1708733439464,-150.0,0.00023752,2]
[315020419,1708733439472,-1361.53,0.00023826,2]
[315020420,1708733439482,-600.0,0.00024,2]
[315020421,1708733439491,-481493.16482061,0.00024,2]
[315020422,1708733439501,-1323.17,0.00024125,2]
[315020423,1708733439511,-152.3142153,0.00024192,2]
[315020424,1708733439549,-177.74,0.00024198,2]
[315020425,1708733439558,-1000.0,0.00024208,2]
[315020426,1708733439568,-300.0,0.00024251,2]
[315020427,1708733439578,-150.0,0.000243,2]
[315020428,1708733439588,-2937.98,0.00024384,2]
[315020429,1708733439597,-955.24,0.00024384,2]
[315020430,1708733439607,-163.61,0.00024442,2]
[315020431,1708733439616,-317.94,0.00024449,2]
[315020432,1708733439625,-159.52,0.0002463,2]
[315020433,1708733439635,-1500.0,0.00024658,3]
[315020434,1708733439645,-250.0,0.00024658,2]
[315020435,1708733439654,-210.0,0.00024691,2]
[315020436,1708733439664,-177.74,0.00024746,2]
[315020437,1708733439673,-5576.62,0.00024794,2]
[315020438,1708733439683,-150.0,0.00024848,2]
[315020439,1708733439692,-5806.98480059,0.0002499,2]
[315020440,1708733439701,-2345.12473754,0.00025,2]
[315020441,1708733439710,-150.0,0.00025,2]
[315020442,1708733439719,-104578.73581807,0.0002509,2]
[315020443,1708733439729,-70758.68549818,0.0002509,2]
[315020444,1708733439739,-155.12574518,0.0002509,2]
[315020445,1708733439750,-3143.15897632,0.000251,2]
[315020446,1708733439760,-150.0,0.000252,2]
[315020447,1708733439769,-317.94,0.00025284,2]
[315020448,1708733439779,-177.74,0.00025294,2]
[315020449,1708733439789,-152.2441223,0.00025396,2]
[315020450,1708733439799,-200.0,0.000254,2]
[315020451,1708733439809,-276.03575344,0.0002549,2]
[315020452,1708733439818,-800.0,0.00025781,2]
[315020453,1708733439827,-167.0,0.00025819,2]
[315020454,1708733439838,-177.74,0.00025842,2]
[315020455,1708733439847,-159.52,0.00025851,2]
[315020456,1708733439857,-4203.78334691,0.00026,2]
[315020457,1708733439867,-202.55372954,0.00026,2]
[315020458,1708733439878,-150.0,0.00026079,2]
[315020459,1708733439888,-247.0,0.00026101,2]
[315020460,1708733439898,-317.94,0.0002612,2]
[315020461,1708733439907,-64093.67491212,0.000263,2]
[315020462,1708733439919,-1323.17,0.00026389,2]
[315020463,1708733439929,-177.74,0.0002639,2]
[315020464,1708733439939,-23070.17160889,0.000264,2]
[315020465,1708733439948,-5806.98480055,0.00026433,2]
[315020466,1708733439958,-5576.62,0.00026438,2]
[315020467,1708733439967,-167.0,0.00026672,2]
[315020468,1708733439977,-211.0,0.00026698,2]
[315020469,1708733439986,-9709.33738471,0.00026798,2]
[315020470,1708733439996,-9709.33738471,0.00026798,2]
[315020471,1708733440005,-9709.33738471,0.00026798,2]
[315020472,1708733440014,-9709.33738471,0.00026798,2]
[315020473,1708733440023,-1000.0,0.00026898,2]
[315020474,1708733440033,-177.74,0.00026938,2]
[315020475,1708733440042,-317.94,0.00026955,2]
[315020476,1708733440051,-182821.56844076,0.00027,2]
[315020477,1708733440060,-283.15675107,0.00027,2]
[315020478,1708733440070,-13879.69741243,0.0002705,2]
[315020479,1708733440079,-163.61,0.00027158,2]
[315020480,1708733440088,-293.0,0.00027161,2]
[315020481,1708733440097,-204.0,0.00027189,2]
[315020482,1708733440107,-86944.77804415,0.000272,2]
[315020483,1708733440116,-500.0,0.00027397,2]
[315020484,1708733440126,-257.00660511,0.00027397,2]
[315020485,1708733440135,-532.12600061,0.00027397,2]
[315020486,1708733440145,-312.17245156,0.00027397,2]
[315020487,1708733440153,-500.0,0.00027397,2]
[315020488,1708733440164,-500.0,0.00027397,2]
[315020489,1708733440173,-500.0,0.00027397,2]
[315020490,1708733440182,-500.0,0.00027397,2]
[315020491,1708733440192,-535.02386814,0.00027397,2]
[315020492,1708733440203,-500.0,0.00027397,2]
[315020493,1708733440215,-500.0,0.00027397,2]
[315020494,1708733440224,-500.0,0.00027397,2]
[315020495,1708733440234,-500.0,0.00027397,2]
[315020496,1708733440243,-500.0,0.00027397,2]
[315020497,1708733440253,-500.0,0.00027397,2]
[315020498,1708733440262,-500.0,0.00027397,2]
[315020499,1708733440272,-500.0,0.00027397,2]
[315020500,1708733440282,-500.0,0.00027397,2]
[315020501,1708733440291,-500.0,0.00027397,2]
[315020502,1708733440301,-500.0,0.00027397,2]
[315020503,1708733440309,-500.0,0.00027397,2]
[315020505,1708733440318,-500.0,0.00027397,2]
[315020506,1708733440328,-500.0,0.00027397,2]
[315020507,1708733440337,-500.0,0.00027397,2]
[315020508,1708733440346,-1000.0,0.00027397,7]
[315020509,1708733440356,-500.0,0.00027397,2]
[315020510,1708733440365,-500.0,0.00027397,2]
[315020511,1708733440374,-500.0,0.00027397,2]
[315020512,1708733440383,-500.0,0.00027397,2]
[315020513,1708733440392,-500.0,0.00027397,2]
[315020514,1708733440401,-500.0,0.00027397,2]
[315020515,1708733440410,-500.0,0.00027397,2]
[315020516,1708733440421,-500.0,0.00027397,2]
[315020517,1708733440430,-500.0,0.00027397,2]
[315020518,1708733440439,-500.0,0.00027397,2]
[315020519,1708733440448,-500.0,0.00027397,2]
[315020520,1708733440457,-500.0,0.00027397,2]
[315020521,1708733440467,-500.0,0.00027397,2]
[315020522,1708733440476,-500.0,0.00027397,2]
[315020523,1708733440485,-512.45741306,0.00027397,2]
[315020524,1708733440494,-500.0,0.00027397,2]
[315020525,1708733440503,-500.0,0.00027397,2]
[315020526,1708733440512,-500.0,0.00027397,2]
[315020527,1708733440521,-500.0,0.00027397,2]
[315020528,1708733440530,-500.0,0.00027397,2]
[315020529,1708733440539,-500.0,0.00027397,2]
[315020530,1708733440549,-500.0,0.00027397,2]
[315020531,1708733440558,-500.0,0.00027397,2]
[315020532,1708733440568,-500.0,0.00027397,2]
[315020533,1708733440577,-500.0,0.00027397,2]
[315020534,1708733440587,-500.0,0.00027397,2]
[315020535,1708733440596,-500.0,0.00027397,2]
[315020536,1708733440606,-500.0,0.00027397,2]
[315020537,1708733440616,-500.0,0.00027397,2]
[315020538,1708733440626,-500.0,0.00027397,2]
[315020539,1708733440636,-500.0,0.00027397,2]
[315020540,1708733440646,-500.0,0.00027397,2]
[315020541,1708733440656,-500.0,0.00027397,2]
[315020542,1708733440668,-500.0,0.00027397,2]
[315020543,1708733440679,-500.0,0.00027397,2]
[315020544,1708733440689,-500.0,0.00027397,2]
[315020545,1708733440699,-500.0,0.00027397,2]
[315020546,1708733440710,-500.0,0.00027397,2]
[315020547,1708733440720,-500.0,0.00027397,2]
[315020548,1708733440730,-500.0,0.00027397,2]
[315020549,1708733440739,-500.0,0.00027397,2]
[315020550,1708733440748,-500.0,0.00027397,2]
[315020551,1708733440758,-500.0,0.00027397,2]
[315020552,1708733440768,-500.0,0.00027397,2]
[315020553,1708733440777,-500.0,0.00027397,2]
[315020554,1708733440787,-500.0,0.00027397,2]
[315020555,1708733440796,-173.52796036,0.00027397,2]
[315020556,1708733440806,-500.0,0.00027397,2]
[315020557,1708733440816,-500.0,0.00027397,2]
[315020558,1708733440825,-500.0,0.00027397,2]
[315020559,1708733440835,-500.0,0.00027397,2]
[315020560,1708733440844,-500.0,0.00027397,2]
[315020561,1708733440854,-584.86989603,0.00027397,2]
[315020562,1708733440863,-500.0,0.00027397,2]
[315020563,1708733440873,-500.0,0.00027397,2]
[315020564,1708733440882,-502.75614636,0.00027397,2]
[315020565,1708733440892,-500.0,0.00027397,2]
[315020566,1708733440902,-500.0,0.00027397,2]
[315020567,1708733440914,-500.0,0.00027397,2]
[315020568,1708733440923,-500.0,0.00027397,2]
[315020569,1708733440932,-500.0,0.00027397,2]
[315020570,1708733440945,-500.0,0.00027397,2]
[315020571,1708733440959,-500.0,0.00027397,2]
[315020572,1708733440973,-500.0,0.00027397,2]
[315020573,1708733440988,-500.0,0.00027397,2]
[315020574,1708733441000,-500.0,0.00027397,2]
[315020575,1708733441011,-500.0,0.00027397,2]
[315020576,1708733441025,-500.0,0.00027397,2]
[315020577,1708733441038,-500.0,0.00027397,2]
[315020578,1708733441052,-500.0,0.00027397,2]
[315020579,1708733441065,-500.0,0.00027397,2]
[315020580,1708733441078,-500.0,0.00027397,2]
[315020581,1708733441090,-500.0,0.00027397,2]
[315020582,1708733441101,-640.9872009,0.00027397,2]
[315020583,1708733441113,-500.0,0.00027397,2]
[315020584,1708733441126,-500.0,0.00027397,2]
[315020585,1708733441138,-500.0,0.00027397,2]
[315020586,1708733441150,-500.0,0.00027397,2]
[315020587,1708733441166,-502.78156408,0.00027397,2]
[315020588,1708733441180,-500.0,0.00027397,2]
[315020589,1708733441192,-500.0,0.00027397,2]
[315020590,1708733441204,-500.0,0.00027397,2]
[315020591,1708733441219,-500.0,0.00027397,2]
[315020592,1708733441231,-500.0,0.00027397,2]
[315020593,1708733441247,-500.0,0.00027397,2]
[315020594,1708733441260,-500.0,0.00027397,2]
[315020595,1708733441272,-500.0,0.00027397,2]
[315020596,1708733441286,-500.0,0.00027397,2]
[315020597,1708733441300,-500.0,0.00027397,2]
[315020598,1708733441312,-590.93074948,0.00027397,2]
[315020600,1708733441325,-500.0,0.00027397,2]
[315020602,1708733441338,-503.69809644,0.00027397,2]
[315020604,1708733441352,-511.58598076,0.00027397,2]
[315020606,1708733441365,-500.0,0.00027397,2]
[315020609,1708733441378,-500.0,0.00027397,2]
[315020611,1708733441389,-500.0,0.00027397,2]
[315020613,1708733441400,-500.0,0.00027397,2]
[315020615,1708733441411,-500.0,0.00027397,2]
[315020617,1708733441425,-500.0,0.00027397,2]
[315020619,1708733441437,-500.0,0.00027397,2]
[315020621,1708733441449,-537.66217803,0.00027397,2]
[315020623,1708733441461,-500.0,0.00027397,2]
[315020625,1708733441473,-500.0,0.00027397,2]
[315020627,1708733441485,-508.2840422,0.00027397,2]
[315020629,1708733441496,-500.0,0.00027397,2]
[315020631,1708733441506,-501.23674738,0.00027397,2]
[315020633,1708733441517,-500.0,0.00027397,2]
[315020636,1708733441528,-506.78880779,0.00027397,2]
[315020638,1708733441539,-502.00001589,0.00027397,2]
[315020640,1708733441550,-500.0,0.00027397,2]
[315020642,1708733441561,-472.66683031,0.00027397,2]
[315020644,1708733441572,-500.0,0.00027397,2]
[315020646,1708733441583,-500.0,0.00027397,2]
[315020648,1708733441595,-508.94413877,0.00027397,2]
[315020650,1708733441606,-505.76932138,0.00027397,2]
[315020651,1708733441617,-500.0,0.00027397,2]
[315020654,1708733441628,-500.0,0.00027397,2]
[315020656,1708733441642,-500.0,0.00027397,2]
[315020658,1708733441652,-500.0,0.00027397,2]
[315020660,1708733441664,-500.0,0.00027397,2]
[315020662,1708733441676,-500.0,0.00027397,2]
[315020664,1708733441687,-502.02402493,0.00027397,2]
[315020666,1708733441700,-500.0,0.00027397,2]
[315020668,1708733441710,-500.0,0.00027397,2]
[315020670,1708733441721,-500.0,0.00027397,2]
[315020672,1708733441733,-500.0,0.00027397,2]
[315020674,1708733441744,-500.0,0.00027397,2]
[315020676,1708733441756,-507.77861049,0.00027397,2]
[315020678,1708733441768,-545.10357767,0.00027397,2]
[315020680,1708733441780,-517.04499331,0.00027397,2]
[315020682,1708733441792,-500.0,0.00027397,2]
[315020684,1708733441803,-500.0,0.00027397,2]
[315020686,1708733441815,-502.84569267,0.00027397,2]
[315020688,1708733441826,-500.0,0.00027397,2]
[315020690,1708733441837,-290.90925275,0.00027397,2]
[315020693,1708733441848,-500.0,0.00027397,2]
[315020695,1708733441860,-500.0,0.00027397,2]
[315020697,1708733441871,-500.0,0.00027397,2]
[315020698,1708733441883,-500.0,0.00027397,2]
[315020701,1708733441895,-500.0,0.00027397,2]
[315020703,1708733441906,-502.46754737,0.00027397,2]
[315020705,1708733441918,-500.0,0.00027397,2]
[315020707,1708733441929,-500.0,0.00027397,2]
[315020708,1708733441940,-500.0,0.00027397,2]
[315020711,1708733441952,-500.0,0.00027397,2]
[315020713,1708733441963,-416.9427916,0.00027397,2]
[315020714,1708733441974,-500.0,0.00027397,2]
[315020717,1708733441986,-500.0,0.00027397,2]
[315020719,1708733441997,-500.0,0.00027397,2]